bitfinex/quotes_SOLUSD_20240809
["timestamp","ask_amount","ask_price","bid_price","bid_amount"]
[1723176974701,6.3087,158.51,158.46,45.0]
[1723176974904,6.3083,158.52,158.46,51.3105]
[1723176975106,6.3083,158.52,158.47,7.57199111]
[1723176975403,0.4039407,158.55,158.49,6.3094]
[1723176975629,6.7114407,158.55,158.5,1.26157116]
[1723176975796,6.3077,158.54,158.5,1.26157116]
[1723176975996,6.3079,158.53,158.48,60.7747]
[1723176976528,6.3079,158.53,158.48,67.0846]
[1723176977009,6.3083,158.52,158.48,62.03628832]
[1723176977210,6.3083,158.52,158.48,60.7747]
[1723176977998,6.3079,158.53,158.48,60.7747]
[1723176978321,6.3079,158.53,158.48,67.0845]
[1723176979324,0.4039407,158.55,158.49,1.26158918]
[1723176979626,0.4039407,158.55,158.51,15.7718]
[1723176979925,0.4039407,158.55,158.52,45.0]
[1723176980143,0.4039407,158.55,158.48,42.5848]
[1723176980427,0.4039407,158.55,158.49,45.0]
[1723176980610,26.81,158.54,158.49,45.0]
[1723176981002,0.4039407,158.55,158.49,45.0]
[1723176981423,6.7111407,158.55,158.49,51.3091]
[1723176982006,6.3077,158.54,158.49,51.3091]
[1723176982822,0.4039407,158.55,158.49,45.0]
[1723176983032,0.4039407,158.55,158.5,1.2614279]
[1723176983529,6.7110407,158.55,158.5,6.3091]
[1723176983707,6.7110407,158.55,158.51,45.0]
[1723176984715,0.4039407,158.55,158.51,45.0]
[1723176985028,0.4039407,158.55,158.53,6.3079]
[1723176985417,0.4039407,158.55,158.52,7.56957654]
[1723176985617,0.4039407,158.55,158.53,45.0]
[1723176985912,0.4039407,158.55,158.53,51.3078]
[1723176986223,0.4039407,158.55,158.54,1.26127831]
[1723176986728,0.4039407,158.55,158.53,45.0]
[1723176987034,0.4039407,158.55,158.52,45.0]
[1723176987207,0.4039407,158.55,158.53,1.2612936]
[1723176988137,0.4039407,158.55,158.54,6.3075]
[1723176988336,0.4039407,158.55,158.54,45.0]
[1723176988548,0.4039407,158.55,158.5,33.1187]
[1723176988715,0.4039407,158.55,158.51,6.3086]
[1723176990836,0.4039407,158.55,158.52,45.0]
[1723176992312,0.4039407,158.55,158.52,51.3081]
[1723176992924,0.4039407,158.55,158.54,6.3075]
[1723176993233,0.4039407,158.55,158.54,51.3075]
[1723176993422,0.4039407,158.55,158.54,45.0]
[1723176994519,0.4039407,158.55,158.53,45.0]
[1723176994917,0.4039407,158.55,158.53,51.3079]
[1723176995241,0.4039407,158.55,158.54,6.3075]
[1723176995427,0.4039407,158.55,158.54,51.3075]
[1723176996822,0.4039407,158.55,158.54,45.0]
[1723176997022,0.4039407,158.55,158.52,6.3082]
[1723176997329,0.4039407,158.55,158.52,6.3083]
[1723176997508,0.4039407,158.55,158.53,6.3079]
[1723176997714,16.6101,158.61,158.54,6.3072]
[1723176997715,0.4645176,158.56,158.54,6.3072]
[1723176998035,0.4645176,158.56,158.49,31.5466]
[1723176998036,26.81,158.55,158.45,22.4117]
[1723176998240,6.3091,158.5,158.45,6.3107]
[1723176998419,6.3096,158.49,158.43,33.1218]
[1723176999114,26.81,158.51,158.43,33.1218]
[1723176999115,6.3099,158.48,158.43,33.1218]
[1723176999314,26.81,158.51,158.43,33.1218]
[1723176999535,33.1195,158.49,158.43,6.3118]
[1723177000041,6.31,158.48,158.43,6.3118]
[1723177000208,6.3103,158.47,158.41,42.5908]
[1723177000414,33.1203,158.47,158.41,15.7808]
[1723177000669,26.81,158.45,158.41,15.7808]
[1723177001246,33.1211,158.45,158.41,15.7808]
[1723177001531,26.81,158.45,158.4,6.3129]
[1723177002819,26.81,158.45,158.41,45.0]
[1723177004550,26.81,158.45,158.34,9.47895916]
[1723177004551,6.3142,158.38,158.34,9.47895916]
[1723177004715,33.1242,158.38,158.34,9.47895916]
[1723177004914,6.3143,158.37,158.34,9.47895916]
[1723177005113,6.3143,158.37,158.32,6.3162]
[1723177005918,33.1239,158.38,158.33,6.3157]
[1723177006142,33.1235,158.39,158.33,22.1054]
[1723177006721,6.3139,158.38,158.33,22.1054]
[1723177007127,26.81,158.35,158.25,9.48318724]
[1723177007442,26.81,158.31,158.27,6.3182]
[1723177007649,20.0,158.35,158.29,6.3175]
[1723177007939,22.0119,158.37,158.29,6.3175]
[1723177007940,26.81,158.34,158.29,6.3175]
[1723177008156,26.81,158.36,158.3,6.317]
[1723177008351,26.81,158.36,158.3,7.58015928]
[1723177008731,26.81,158.36,158.3,6.317]
[1723177008732,33.1247,158.36,158.3,6.317]
[1723177009045,6.3151,158.35,158.3,6.317]
[1723177009944,6.3151,158.35,158.3,7.5801862]
[1723177010122,26.81,158.36,158.31,51.3166]
[1723177010527,22.0119,158.37,158.33,6.3159]
[1723177010739,6.3167,158.31,158.25,22.1159]
[1723177010955,26.81,158.3,158.22,42.6107]
[1723177011235,33.1274,158.3,158.23,6.3198]
[1723177011438,33.1274,158.3,158.24,6.3194]
[1723177011642,6.3175,158.29,158.24,6.3194]
[1723177011839,33.1271,158.3,158.25,6.319]
[1723177012049,33.1267,158.31,158.25,6.319]
[1723177012256,26.81,158.29,158.22,15.8007]
[1723177012557,26.81,158.23,158.17,9.90267163]
[1723177012874,15.641,158.28,158.18,42.6146]
[1723177013028,26.81,158.27,158.21,6.3203]
[1723177013229,6.3187,158.26,158.19,6.3212]
[1723177013439,26.81,158.27,158.21,15.8016]
[1723177013734,6.243,158.3,158.23,6.3198]
[1723177013936,6.3179,158.29,158.23,6.3198]
[1723177014154,7.89750573,158.29,158.23,6.3198]
[1723177014448,6.318,158.28,158.23,6.3198]
[1723177014653,6.318,158.28,158.21,15.8016]
[1723177014858,12.5603,158.3,158.22,45.0]
[1723177015026,6.3175,158.29,158.22,45.0]
[1723177016055,6.3175,158.29,158.23,6.3198]
[1723177016650,6.3184,158.27,158.22,45.0]
[1723177016859,34.54,158.29,158.21,15.8016]
[1723177017954,6.3179,158.28,158.22,6.3202]
[1723177018558,34.54,158.29,158.23,6.3198]
[1723177018749,6.3173,158.3,158.24,6.3191]
[1723177019160,6.3175,158.29,158.24,6.3191]
[1723177019659,6.3171,158.3,158.25,6.319]
[1723177020646,34.54,158.33,158.28,6.3178]
[1723177021041,6.2768,158.34,158.29,6.3174]
[1723177021337,40.8554,158.35,158.3,6.317]
[1723177021539,15.5187,158.37,158.31,6.3166]
[1723177021540,21.833,158.37,158.31,6.3166]
[1723177021746,6.2682,158.38,158.33,6.3158]
[1723177021747,12.5821,158.38,158.33,6.3158]
[1723177022142,34.54,158.39,158.32,15.7907]
[1723177022143,34.54,158.39,158.34,6.3154]
[1723177022340,50.0587,158.41,158.34,6.3154]
[1723177022649,51.63740153,158.41,158.32,15.7907]
[1723177022860,6.3135,158.39,158.33,45.0]
[1723177023247,40.853,158.41,158.34,15.7878]
[1723177023455,34.54,158.41,158.34,15.7878]
[1723177023640,6.3127,158.41,158.35,6.3151]
[1723177023843,12.5806,158.42,158.34,15.7878]
[1723177024040,6.3118,158.44,158.37,15.7857]
[1723177024240,34.54,158.45,158.4,6.3131]
[1723177024470,12.6943,158.46,158.4,6.3131]
[1723177025474,6.3112,158.45,158.4,6.3131]
[1723177026348,40.8512,158.45,158.38,51.3135]
[1723177027340,34.54,158.43,158.37,15.7857]
[1723177027542,34.54,158.43,158.34,6.6654]
[1723177027543,6.313,158.41,158.35,6.315]
[1723177027765,6.3131,158.4,158.35,6.315]
[1723177027955,40.8527,158.41,158.35,6.315]
[1723177028472,6.3123,158.42,158.35,15.7868]
[1723177028771,40.8519,158.43,158.37,6.3142]
[1723177028944,34.54,158.43,158.38,6.3137]
[1723177029146,40.8519,158.43,158.37,6.3142]
[1723177029344,40.8519,158.43,158.35,15.7868]
[1723177029747,40.8519,158.43,158.34,6.6654]
[1723177029748,34.54,158.45,158.38,15.7847]
[1723177029978,34.54,158.45,158.4,6.313]
[1723177030144,34.54,158.45,158.38,22.0982]
[1723177030342,6.3119,158.43,158.39,45.0]
[1723177030546,40.8519,158.43,158.38,15.7847]
[1723177030747,6.3123,158.42,158.38,15.7847]
[1723177031477,40.8519,158.43,158.38,15.7847]
[1723177031859,6.3127,158.41,158.35,22.1024]
[1723177032051,6.3127,158.41,158.36,45.0]
[1723177032249,6.3127,158.41,158.36,6.3146]
[1723177032450,34.54,158.43,158.35,15.7877]
[1723177032451,6.3131,158.4,158.35,15.7877]
[1723177032664,6.3135,158.39,158.35,15.7877]
[1723177032876,6.3135,158.39,158.33,21.383]
[1723177033254,6.3135,158.39,158.34,6.3154]
[1723177033777,26.83,158.38,158.34,6.3154]
[1723177034145,26.83,158.38,158.35,45.0]
[1723177034343,47.3236,158.49,158.35,45.0]
[1723177034552,26.83,158.43,158.35,45.0]
[1723177034766,26.83,158.43,158.35,46.26252236]
[1723177034965,33.1422,158.43,158.38,15.7847]
[1723177035280,33.1429,158.41,158.36,6.3143]
[1723177035582,26.83,158.41,158.36,6.3143]
[1723177035891,6.3123,158.42,158.35,60.7877]
[1723177035892,40.8023,158.42,158.37,6.3143]
[1723177036169,40.8019,158.44,158.38,45.0]
[1723177036759,40.8019,158.44,158.38,51.3138]
[1723177037375,34.49,158.44,158.4,6.313]
[1723177037679,6.3111,158.45,158.4,6.313]
[1723177038050,6.3111,158.45,158.39,6.3134]
[1723177038272,6.3115,158.44,158.39,6.3134]
[1723177039182,6.3115,158.44,158.38,51.3138]
[1723177040553,6.3111,158.45,158.38,45.0]
[1723177040775,6.3111,158.45,158.39,1.26237143]
[1723177040978,6.3108,158.46,158.41,6.3126]
[1723177041179,34.49,158.48,158.41,6.3126]
[1723177042060,34.49,158.48,158.4,23.35803267]
[1723177042273,34.49,158.46,158.41,45.0]
[1723177042949,6.4171,158.5,158.42,6.3119]
[1723177043155,6.4171,158.5,158.41,45.0]
[1723177043156,6.31,158.48,158.41,45.0]
[1723177043355,6.3103,158.47,158.41,46.26210688]
[1723177043566,6.3108,158.46,158.41,51.3123]
[1723177043955,6.3103,158.47,158.41,51.3123]
[1723177044158,6.3103,158.47,158.42,6.312]
[1723177044457,6.3099,158.48,158.43,45.0]
[1723177044765,6.3103,158.47,158.43,45.0]
[1723177045960,6.3099,158.48,158.43,51.3119]
[1723177046163,6.3105,158.47,158.43,45.0]
[1723177047195,6.311,158.46,158.43,45.0]
[1723177047362,6.3113,158.45,158.42,45.0]
[1723177047704,34.49,158.47,158.4,22.0957]
[1723177047705,40.8007,158.47,158.41,51.3126]
[1723177047871,34.49,158.47,158.38,22.075]
[1723177048055,34.49,158.45,158.36,15.7859]
[1723177048254,34.49,158.48,158.36,22.1002]
[1723177048255,6.3126,158.42,158.36,22.1002]
[1723177048785,6.3128,158.41,158.36,22.1002]
[1723177048993,15.7759,158.47,158.37,6.3143]
[1723177049284,34.49,158.44,158.37,6.3143]
[1723177049493,34.49,158.44,158.38,45.0]
[1723177050291,6.3128,158.41,158.38,45.0]
[1723177050497,6.3128,158.41,158.37,45.0]
[1723177051279,34.49,158.42,158.37,51.314]
[1723177051588,6.312,158.43,158.37,45.0]
[1723177051891,6.3123,158.42,158.37,51.3142]
[1723177052499,40.8023,158.42,158.37,51.3142]
[1723177053220,34.49,158.42,158.38,6.3139]
[1723177054274,40.8023,158.42,158.37,51.3142]
[1723177054476,34.49,158.42,158.37,45.0]
[1723177054674,34.49,158.42,158.36,15.7859]
[1723177055004,6.3131,158.4,158.36,15.7859]
[1723177055205,6.3127,158.41,158.36,22.1006]
[1723177056999,40.8024,158.42,158.37,6.3143]
[1723177057501,40.8024,158.42,158.38,45.0]
[1723177057704,26.82,158.42,158.38,51.3138]
[1723177058409,33.1324,158.42,158.38,45.0]
[1723177058591,33.1324,158.42,158.37,51.3142]
[1723177059001,26.82,158.42,158.38,15.784]
[1723177059303,32.8578,158.48,158.41,6.3127]
[1723177059304,6.3111,158.46,158.41,6.3127]
[1723177059506,26.82,158.44,158.42,45.0]
[1723177059688,33.1315,158.44,158.42,45.0]
[1723177060019,33.1315,158.44,158.41,45.0]
[1723177060486,6.3111,158.45,158.41,45.0]
[1723177060687,33.1311,158.45,158.41,45.0]
[1723177062512,26.82,158.45,158.41,51.3125]
[1723177063222,26.82,158.45,158.42,6.3122]
[1723177063417,26.82,158.45,158.43,45.0]
[1723177063705,26.82,158.45,158.41,45.0]
[1723177063906,26.82,158.43,158.41,45.0]
[1723177064502,26.82,158.43,158.38,6.3138]
[1723177065206,26.82,158.43,158.39,6.3133]
[1723177065399,6.0378,158.48,158.41,6.3126]
[1723177065600,26.82,158.45,158.41,6.3126]
[1723177065796,26.82,158.45,158.42,45.0]
[1723177066488,26.82,158.43,158.42,45.0]
[1723177067992,6.0378,158.48,158.42,45.0]
[1723177068192,33.1307,158.46,158.41,51.3126]
[1723177069618,26.82,158.44,158.41,45.0]
[1723177069806,26.82,158.44,158.4,45.0]
[1723177070315,26.82,158.42,158.39,45.0]
[1723177070696,26.82,158.42,158.39,51.3135]
[1723177070897,6.3111,158.45,158.4,6.313]
[1723177071218,33.1311,158.45,158.41,45.0]
[1723177071392,26.82,158.43,158.4,45.0]
[1723177071594,6.3124,158.42,158.37,9.48072444]
[1723177071788,26.82,158.41,158.37,9.48072444]
[1723177072094,26.82,158.41,158.37,6.3141]
[1723177072314,6.3119,158.44,158.38,6.3138]
[1723177072489,26.82,158.44,158.4,6.313]
[1723177072824,6.3111,158.45,158.38,25.26522444]
[1723177072829,26.82,158.45,158.38,25.26522444]
[1723177073522,26.82,158.45,158.39,45.0]
[1723177073699,26.82,158.45,158.4,6.3127]
[1723177073906,26.82,158.45,158.41,51.3125]
[1723177074218,26.82,158.45,158.41,6.3125]
[1723177074409,26.82,158.45,158.42,45.0]
[1723177076107,26.82,158.45,158.41,45.0]
[1723177076502,42.8816,158.5,158.43,6.3118]
[1723177076711,8.64999814,158.52,158.44,45.0]
[1723177076712,6.3089,158.51,158.44,45.0]
[1723177076920,6.3089,158.51,158.46,6.3107]
[1723177077126,6.54707332,158.5,158.47,45.0]
[1723177077921,6.54707332,158.5,158.39,9.48067108]
[1723177077922,60.1132,158.48,158.39,9.48067108]
[1723177078236,26.82,158.41,158.37,9.48067108]
[1723177078402,6.3135,158.4,158.35,6.315]
[1723177078596,26.82,158.4,158.35,15.79567108]
[1723177078918,33.1327,158.42,158.35,9.48067108]
[1723177079117,6.4732,158.48,158.37,26.82]
[1723177079318,26.82,158.45,158.38,9.48067108]
[1723177079519,6.3116,158.44,158.38,6.3139]
[1723177079728,6.3116,158.44,158.38,15.79457108]
[1723177080201,26.82,158.41,158.37,9.48067108]
[1723177080408,26.82,158.41,158.36,9.48067108]
[1723177080409,6.3127,158.41,158.36,9.48067108]
[1723177080607,26.82,158.41,158.36,15.79666032]
[1723177081207,6.3123,158.42,158.37,6.3142]
[1723177081409,33.1323,158.42,158.37,6.3142]
[1723177081617,6.3127,158.41,158.38,45.0]
[1723177081931,33.1323,158.42,158.37,45.0]
[1723177083147,26.82,158.42,158.37,45.0]
[1723177083303,33.1313,158.45,158.39,6.3134]
[1723177083507,33.1313,158.45,158.4,45.0]
[1723177084116,6.3113,158.45,158.4,51.3131]
[1723177084317,26.82,158.48,158.4,78.1331]
[1723177084537,26.82,158.46,158.39,41.88977761]
[1723177084733,26.82,158.46,158.39,32.4077]
[1723177085032,6.3115,158.45,158.39,48.20317761]
[1723177085630,6.3105,158.47,158.39,41.88977761]
[1723177085832,6.54707332,158.5,158.41,6.3125]
[1723177086009,6.54707332,158.5,158.42,87.6003]
[1723177086334,6.54707332,158.5,158.43,45.0]
[1723177086522,33.36707332,158.5,158.43,45.0]
[1723177086717,39.67657332,158.5,158.43,51.3119]
[1723177086926,33.36707332,158.5,158.43,51.3119]
[1723177087135,6.54707332,158.5,158.47,6.3103]
[1723177087312,6.54707332,158.5,158.48,45.0]
[1723177087728,6.54707332,158.5,158.47,45.0]
[1723177088212,33.1274,158.55,158.47,45.0]
[1723177088415,6.3076,158.54,158.48,6.3098]
[1723177088617,0.4645176,158.56,158.49,51.3095]
[1723177088618,6.7715176,158.56,158.49,51.3095]
[1723177088824,6.7715176,158.56,158.5,6.3091]
[1723177089127,6.7715176,158.56,158.51,46.26147122]
[1723177089325,0.4645176,158.56,158.52,28.08140574]
[1723177089533,0.4645176,158.56,158.54,39.2051]
[1723177089740,0.4645176,158.56,158.55,1.26103359]
[1723177089911,0.4645176,158.56,158.55,46.26103359]
[1723177090116,15.7535,158.7,158.57,15.7653]
[1723177090344,15.7535,158.7,158.59,26.82]
[1723177090345,26.82,158.68,158.59,26.82]
[1723177090555,26.82,158.66,158.6,45.0]
[1723177090842,6.3045,158.62,158.58,45.0]
[1723177091047,26.82,158.64,158.58,45.0]
[1723177091722,34.4,158.65,158.57,45.0]
[1723177092155,15.7566,158.67,158.57,45.0]
[1723177092451,34.4,158.64,158.57,45.0]
[1723177092622,6.3048,158.61,158.57,45.0]
[1723177092817,20.0,158.63,158.56,45.0]
[1723177093019,20.0,158.63,158.55,45.0]
[1723177093415,34.4,158.62,158.55,45.0]
[1723177093615,34.4,158.62,158.55,51.3071]
[1723177093616,40.7047,158.62,158.55,51.3071]
[1723177094151,6.3047,158.62,158.55,51.3071]
[1723177094445,6.3048,158.61,158.55,51.3071]
[1723177094649,6.3053,158.6,158.55,45.0]
[1723177094856,6.3057,158.59,158.55,45.0]
[1723177095149,6.3057,158.59,158.54,45.0]
[1723177095658,34.4,158.6,158.51,1.26119153]
[1723177095826,6.3062,158.58,158.51,6.3086]
[1723177096021,6.3062,158.58,158.52,6.3083]
[1723177096245,34.4,158.62,158.52,15.7699]
[1723177096547,6.3056,158.59,158.53,7.56914364]
[1723177096723,6.306,158.58,158.52,17.03117166]
[1723177096927,6.3056,158.59,158.53,6.3078]
[1723177097150,6.3056,158.59,158.54,1.26117377]
[1723177097439,6.3056,158.59,158.54,51.3075]
[1723177097634,6.305,158.61,158.56,6.3067]
[1723177097833,6.3043,158.62,158.57,45.0]
[1723177099252,6.3047,158.61,158.57,45.0]
[1723177099748,34.4,158.64,158.54,1.26106301]
[1723177100047,31.2,158.65,158.54,1.26106301]
[1723177100048,6.3053,158.6,158.54,51.3074]
[1723177100233,6.3056,158.59,158.55,1.26116908]
[1723177100422,6.3051,158.6,158.54,6.3073]
[1723177100629,6.3055,158.59,158.54,1.26117763]
[1723177100850,6.3055,158.59,158.55,1.2612063]
[1723177101051,34.4,158.62,158.52,15.7699]
[1723177101052,6.3068,158.56,158.52,15.7699]
[1723177101222,6.3068,158.56,158.5,6.3089]
[1723177101644,40.7062,158.58,158.51,15.7715]
[1723177101827,6.3062,158.58,158.52,1.26126039]
[1723177102026,6.3055,158.59,158.52,1.26126039]
[1723177102227,6.3059,158.58,158.52,1.26126039]
[1723177102440,6.3059,158.58,158.51,15.7715]
[1723177102652,6.3068,158.56,158.52,45.0]
[1723177102852,6.3063,158.57,158.52,45.0]
[1723177103447,6.3072,158.55,158.5,6.3091]
[1723177103753,6.3072,158.55,158.49,15.6754]
[1723177103929,6.3067,158.56,158.5,6.3091]
[1723177104857,6.3067,158.56,158.51,45.0]
[1723177105058,6.3067,158.56,158.51,46.26141073]
[1723177105549,6.3068,158.56,158.51,52.57011073]
[1723177106259,6.3068,158.56,158.51,46.26141073]
[1723177107958,6.3068,158.56,158.43,6.3118]
[1723177107959,34.4,158.52,158.43,6.3118]
[1723177108163,6.309,158.51,158.42,38.95399338]
[1723177108460,34.4,158.52,158.44,6.3115]
[1723177108656,34.4,158.5,158.42,37.7018]
[1723177110059,6.3112,158.45,158.39,6.3131]
[1723177110367,6.3107,158.46,158.4,6.313]
[1723177110572,1.57783293,158.47,158.39,6.3134]
[1723177111064,6.3111,158.45,158.4,6.3131]
[1723177111367,6.3111,158.45,158.39,6.3135]
[1723177112274,6.3111,158.45,158.4,45.0]
[1723177112839,40.7099,158.48,158.41,17.04376683]
[1723177113041,12.8959,158.49,158.43,6.3118]
[1723177113362,6.31,158.48,158.44,45.0]
[1723177113846,6.3103,158.47,158.43,45.0]
[1723177114447,6.3099,158.48,158.43,45.0]
[1723177114668,6.3099,158.48,158.43,51.3118]
[1723177115263,6.3099,158.48,158.43,45.0]
[1723177115665,6.3105,158.47,158.43,45.0]
[1723177115862,6.3111,158.45,158.42,45.0]
[1723177116069,6.3111,158.45,158.41,45.0]
[1723177117661,34.4,158.48,158.41,45.0]
[1723177117959,20.0,158.47,158.41,45.0]
[1723177118149,6.3111,158.45,158.41,45.0]
[1723177119949,20.0,158.47,158.41,45.0]
[1723177120365,6.3114,158.45,158.41,45.0]
[1723177123551,20.0,158.47,158.41,45.0]
[1723177123754,6.3115,158.44,158.41,45.0]
[1723177124162,6.3111,158.45,158.41,45.0]
[1723177125287,26.8,158.46,158.41,45.0]
[1723177125659,6.312,158.43,158.41,45.0]
[1723177126076,6.3115,158.44,158.41,45.0]
[1723177126482,6.3115,158.44,158.4,45.0]
[1723177126949,20.0,158.47,158.4,45.0]
[1723177127154,26.8,158.51,158.44,26.8]
[1723177127375,42.5708,158.53,158.45,45.0]
[1723177127680,42.5708,158.53,158.45,44.5]
[1723177128360,6.3094,158.5,158.45,44.5]
[1723177128551,42.5708,158.53,158.46,26.8]
[1723177128552,26.8,158.53,158.46,26.8]
[1723177128759,6.3086,158.52,158.47,6.3103]
[1723177128961,6.3073,158.55,158.5,6.3088]
[1723177129463,6.3073,158.55,158.5,33.1088]
[1723177129669,6.3073,158.55,158.51,45.0]
[1723177130279,26.8,158.59,158.51,51.3087]
[1723177130889,26.8,158.59,158.51,45.0]
[1723177131256,6.3068,158.56,158.51,45.0]
[1723177131563,6.3062,158.58,158.52,43.83182413]
[1723177131885,6.3062,158.58,158.53,45.0]
[1723177132069,6.3062,158.58,158.54,1.26127778]
[1723177132381,6.3062,158.58,158.55,1.26123628]
[1723177133271,6.3056,158.59,158.54,7.568614]
[1723177133582,26.8,158.62,158.55,46.26107952]
[1723177133762,26.8,158.62,158.55,45.0]
[1723177134481,26.8,158.64,158.56,26.8]
[1723177134688,26.8,158.64,158.57,46.2609014]
[1723177134874,6.3042,158.63,158.57,52.5670014]
[1723177135182,6.3042,158.63,158.57,51.3061]
[1723177135366,6.3042,158.63,158.58,33.1059]
[1723177135693,26.8,158.66,158.59,45.0]
[1723177136780,26.8,158.64,158.59,45.0]
[1723177136992,6.3055,158.59,158.54,33.189]
[1723177137287,28.37636069,158.62,158.54,6.389]
[1723177137586,6.3064,158.57,158.53,15.0212]
[1723177137789,6.3067,158.56,158.53,15.0212]
[1723177138169,33.1063,158.58,158.53,15.0212]
[1723177138376,6.3065,158.57,158.53,15.0212]
[1723177138696,26.8,158.58,158.53,15.0212]
[1723177138874,6.3064,158.57,158.53,15.0212]
[1723177139068,6.3064,158.57,158.54,45.0]
[1723177140966,26.8,158.6,158.55,1.26127514]
[1723177141166,20.0,158.59,158.54,45.0]
[1723177141588,26.8,158.6,158.55,1.26118327]
[1723177141891,33.1052,158.6,158.55,1.26118327]
[1723177142280,33.1052,158.6,158.55,7.56828327]
[1723177142483,26.8,158.62,158.56,45.0]
[1723177142678,6.3055,158.6,158.54,78.1075]
[1723177142993,16.90600548,158.68,158.58,33.1059]
[1723177142994,6.3041,158.63,158.58,33.1059]
[1723177143206,6.3039,158.64,158.59,45.0]
[1723177143698,5.8039,158.64,158.59,45.0]
[1723177143875,6.3039,158.63,158.59,45.0]
[1723177146784,6.3055,158.59,158.54,26.8]
[1723177147097,6.3059,158.58,158.53,15.0212]
[1723177147265,6.3056,158.59,158.54,6.3074]
[1723177148063,26.8,158.61,158.53,15.0212]
[1723177148266,26.8,158.59,158.53,15.0212]
[1723177148694,6.306,158.58,158.53,15.0212]
[1723177149566,6.306,158.58,158.54,45.0]
[1723177150173,26.8,158.59,158.54,51.3074]
[1723177152695,33.1055,158.59,158.54,51.3074]
[1723177153572,26.8,158.59,158.54,51.3074]
[1723177154400,6.3052,158.6,158.54,45.0]
[1723177154567,33.1043,158.63,158.57,6.3061]
[1723177154882,6.3043,158.62,158.58,45.0]
[1723177155390,6.3043,158.62,158.57,45.0]
[1723177155699,33.104,158.63,158.57,51.3063]
[1723177156194,33.104,158.63,158.58,6.3058]
[1723177156403,33.104,158.63,158.59,45.0]
[1723177157478,26.8,158.63,158.59,45.0]
[1723177157778,6.3047,158.62,158.59,45.0]
[1723177158090,6.3047,158.62,158.58,45.0]
[1723177158313,6.3049,158.61,158.58,45.0]
[1723177158485,6.3049,158.61,158.57,45.0]
[1723177159480,33.104,158.63,158.58,6.3057]
[1723177159804,33.104,158.63,158.59,45.0]
[1723177160183,33.104,158.63,158.58,45.0]
[1723177160383,26.8,158.63,158.58,45.0]
[1723177160584,26.8,158.63,158.57,45.0]
[1723177160790,6.3043,158.62,158.57,45.0]
[1723177161693,6.3047,158.61,158.57,45.0]
[1723177161886,33.1044,158.62,158.57,45.0]
[1723177162097,33.1044,158.62,158.57,51.3061]
[1723177163212,33.1044,158.62,158.57,45.0]
[1723177163505,6.3049,158.61,158.57,45.0]
[1723177163905,85.1299,158.58,158.37,9.4702383]
[1723177164088,85.1299,158.58,158.42,0.09149116]
[1723177164089,26.8,158.44,158.42,0.09149116]
[1723177164283,6.3119,158.43,158.42,0.09149116]
[1723177164808,6.3119,158.43,158.32,48.9062]
[1723177164809,6.3135,158.39,158.32,48.9062]
[1723177165017,33.1135,158.39,158.33,6.3157]
[1723177165906,33.1143,158.37,158.32,15.7903]
[1723177166409,26.8,158.35,158.28,15.7943]
[1723177166581,15.7813,158.42,158.28,42.5943]